bitfinex/quotes_ETHUSD_20220106
["timestamp","ask_amount","ask_price","bid_price","bid_amount"]
[1641444751362,0.00341055,3440.3,3439.9,1.7135]
[1641444751560,1.1402581,3440.0,3439.9,2.0135]
[1641444751961,0.00170528,3440.0,3439.9,2.0135]
[1641444752470,0.00170528,3440.0,3439.9,1.172]
[1641444753416,0.00170528,3440.0,3439.9,0.872]
[1641444756625,3.04779218,3442.5,3439.9,5.50762435]
[1641444756864,7.5977,3442.5,3440.7,0.872]
[1641444757064,0.00511581,3440.9,3440.8,2.32497]
[1641444757268,0.00511581,3440.9,3440.8,18.82497]
[1641444757468,7.5977,3442.5,3441.5,0.72642]
[1641444757673,7.5977,3442.5,3441.6,1.59844]
[1641444757674,1.27505344,3441.8,3441.6,1.59844]
[1641444758081,1.27505344,3441.8,3441.6,0.872]
[1641444758082,1.22505344,3441.8,3441.6,0.872]
[1641444759869,0.00625266,3442.0,3441.6,0.872]
[1641444760275,0.00568423,3441.9,3441.6,0.872]
[1641444760709,0.00511581,3441.8,3441.6,0.872]
[1641444760909,19.8235843,3441.7,3441.6,0.872]
[1641444761107,19.82813169,3441.7,3441.6,0.872]
[1641444761309,2.17813169,3441.7,3441.6,0.872]
[1641444761910,17.65454739,3441.7,3441.6,0.0001]
[1641444762110,17.65454739,3441.7,3440.2,1.45333]
[1641444762310,17.65454739,3441.7,3440.2,1.75333]
[1641444762511,0.00397896,3441.6,3440.3,0.00341054]
[1641444762918,0.00341054,3441.5,3440.3,0.00341054]
[1641444763114,2.32867312,3440.8,3440.3,0.00341054]
[1641444763515,0.00284212,3441.4,3440.3,0.00341054]
[1641444763715,17.60284212,3441.7,3440.6,0.72664]
[1641444764114,0.00113684,3441.6,3440.7,0.00397897]
[1641444764859,1.10487493,3441.0,3440.3,0.00625266]
[1641444765265,1.10487493,3441.0,3440.5,0.72665]
[1641444765663,1.10487493,3441.0,3440.6,0.00454739]
[1641444766266,1.10487493,3441.0,3440.3,0.00625266]
[1641444766464,1.10487493,3441.0,3440.0,0.00795793]
[1641444766665,1.26070063,3440.4,3440.0,0.00795793]
[1641444766866,1.4658882,3440.5,3440.0,0.00795793]
[1641444767068,8.82543684,3441.6,3440.0,0.85295793]
[1641444767264,0.00113684,3441.6,3440.7,0.72657]
[1641444767464,0.00113684,3441.6,3440.7,0.72661]
[1641444767665,4.94630274,3442.2,3440.9,6.35]
[1641444767866,1.10300274,3442.2,3440.9,6.35]
[1641444768110,1.31787821,3441.7,3441.0,0.00341054]
[1641444768307,1.08697589,3441.6,3441.0,0.00341054]
[1641444768711,1.08697589,3441.6,3441.3,0.72652]
[1641444769108,1.08697589,3441.6,3441.4,0.00113684]
[1641444769708,1.08697589,3441.6,3440.7,0.00511581]
[1641444769908,1.08697589,3441.6,3440.1,0.00852635]
[1641444770109,1.1435183,3440.6,3440.2,0.00795793]
[1641444770309,0.00113685,3441.8,3440.3,0.7266661]
[1641444770510,0.00113685,3441.8,3440.5,1.45321]
[1641444771010,0.00113685,3441.8,3440.6,0.00568423]
[1641444771209,1.039348,3440.9,3440.6,0.00568423]
[1641444771610,0.00113685,3441.8,3440.6,0.00568423]
[1641444771882,0.00113685,3441.8,3440.7,0.345]
[1641444771883,0.00205721,3441.8,3440.7,0.345]
[1641444772074,0.00205721,3441.8,3441.1,1.45283]
[1641444772368,0.00205721,3441.8,3441.2,0.30227369]
[1641444772567,0.00205721,3441.8,3441.3,1.48547694]
[1641444772767,0.00205721,3441.8,3441.3,0.00170527]
[1641444772969,0.00205721,3441.8,3441.4,0.72753684]
[1641444773170,0.00205721,3441.8,3441.3,0.00170527]
[1641444773568,0.00205721,3441.8,3441.0,0.00341054]
[1641444774270,0.00205721,3441.8,3441.2,1.453017]
[1641444774469,0.00205721,3441.8,3441.2,1.753017]
[1641444774671,0.00205721,3441.8,3441.3,0.00170527]
[1641444774872,0.00205721,3441.8,3441.3,1.45457527]
[1641444775273,0.00205721,3441.8,3441.4,0.00113684]
[1641444775717,0.00205721,3441.8,3441.4,0.72756684]
[1641444775928,0.00205721,3441.8,3441.5,0.3]
[1641444776823,6.17,3444.5,3441.7,17.66270553]
[1641444777023,6.17,3444.5,3442.9,0.726133]
[1641444777024,7.3979,3444.1,3442.9,0.726133]
[1641444777221,7.3979,3444.1,3442.7,0.72616]
[1641444777222,0.5,3444.3,3442.8,1.45227]
[1641444777421,6.17,3444.5,3442.8,1.45227]
[1641444777422,3.9455,3444.2,3442.8,1.45227]
[1641444777622,3.95914216,3444.2,3442.9,0.345]
[1641444777821,2.63662954,3443.7,3442.9,1.43780906]
[1641444778020,2.63662954,3443.7,3442.9,0.345]
[1641444778223,8.40002317,3443.0,3442.5,1.45237]
[1641444778429,0.01023162,3443.6,3442.5,1.45237]
[1641444778622,1.30831329,3443.7,3442.6,0.72618]
[1641444778623,0.00625266,3442.9,3442.6,0.72618]
[1641444778822,1.30831329,3443.7,3442.6,0.72618]
[1641444778823,0.0096632,3443.5,3442.6,0.72618]
[1641444779023,0.00568423,3442.8,3442.6,0.72618]
[1641444779224,1.42141635,3443.0,3442.6,0.72618]
[1641444779475,1.42141635,3443.0,3442.5,1.45237]
[1641444779476,0.00511581,3442.7,3442.5,1.45237]
[1641444779678,1.10586135,3442.8,3442.5,1.45237]
[1641444779876,0.00454739,3442.6,3442.5,1.45237]
[1641444780381,0.00454739,3442.6,3441.0,3.9046769]
[1641444780580,0.00454739,3442.6,3441.6,0.00113684]
[1641444780882,0.00397896,3442.5,3441.2,1.45296]
[1641444781278,0.00341054,3442.4,3441.3,0.00284212]
[1641444781680,0.00284212,3442.3,3441.5,0.7264076]
[1641444781879,0.00284212,3442.3,3441.6,1.45276]
[1641444782080,0.00227369,3442.2,3441.6,1.45389685]
[1641444782479,7.3483,3442.9,3441.6,1.45389685]
[1641444782480,0.00170527,3442.1,3441.6,1.45389685]
[1641444782679,0.00170527,3442.1,3441.8,1.08638056]
[1641444782879,0.00113685,3442.0,3441.8,1.08638056]
[1641444783118,0.00113685,3442.0,3441.8,1.38638056]
[1641444783410,0.00170527,3442.1,3441.9,0.7262532]
[1641444783615,0.00081443,3442.2,3442.0,0.345]
[1641444784011,3.819,3443.8,3442.1,17.65]
[1641444784212,1.10854593,3443.7,3442.3,1.4523468]
[1641444784413,1.1176407,3443.7,3442.8,0.72618]
[1641444785111,1.1176407,3443.7,3443.2,1.19411333]
[1641444785315,1.1176407,3443.7,3442.8,0.3]
[1641444785512,0.00909477,3443.7,3442.6,0.3]
[1641444785713,0.00909477,3443.7,3443.2,0.72612]
[1641444786116,0.00909477,3443.7,3443.3,0.72603]
[1641444786516,0.00909477,3443.7,3443.4,1.29694537]
[1641444786714,0.00909477,3443.7,3443.5,0.72599]
[1641444787161,0.00909477,3443.7,3443.5,1.06163587]
[1641444787363,3.82813484,3447.1,3443.6,0.39635342]
[1641444787562,3.60945346,3446.7,3445.0,0.01239565]
[1641444787760,3.60945346,3446.7,3445.1,7.05]
[1641444787761,6.12,3445.5,3445.1,7.05]
[1641444787959,7.57436055,3446.0,3445.5,0.7256]
[1641444788365,7.57436055,3446.0,3445.2,1.4512]
[1641444788366,8.92901826,3446.0,3445.2,1.4512]
[1641444788564,7.52465771,3446.0,3444.8,1.4512425]
[1641444788771,7.52465771,3446.0,3444.3,0.7258]
[1641444788969,0.01226958,3445.6,3444.9,0.00113685]
[1641444789164,0.01226958,3445.6,3443.6,0.03854691]
[1641444789165,0.01226958,3445.6,3444.4,0.00397896]
[1641444789465,1.31635903,3444.6,3443.8,1.23913955]
[1641444789667,1.03938633,3444.9,3443.8,1.23913955]
[1641444789867,1.03938633,3444.9,3443.9,0.00682108]
[1641444790166,0.93938633,3444.9,3443.9,0.00682108]
[1641444791109,0.93938633,3444.9,3443.9,0.73276108]
[1641444791317,0.00170527,3445.4,3443.9,0.00682108]
[1641444791511,0.00170527,3445.4,3444.0,1.45791265]
[1641444791711,3.7553,3445.9,3444.0,3.01902586]
[1641444791712,0.00113685,3445.3,3444.0,3.01902586]
[1641444791910,0.00113685,3445.3,3445.2,5.58091578]
[1641444792112,0.00397897,3445.8,3445.2,5.88091578]
[1641444792312,0.00113685,3445.3,3445.2,5.88091578]
[1641444792510,0.00341054,3445.7,3445.2,5.88091578]
[1641444792711,0.00113685,3445.3,3445.2,1.58091578]
[1641444792916,0.00284212,3445.6,3445.0,0.7256909]
[1641444793117,1.25852514,3445.2,3444.9,0.72571]
[1641444793315,0.00113685,3445.3,3444.9,0.72571]
[1641444793316,0.00119481,3445.3,3444.9,0.72571]
[1641444793715,0.00119481,3445.3,3444.7,0.72576]
[1641444793921,0.00119481,3445.3,3444.7,1.4426471]
[1641444794122,0.00119481,3445.3,3444.8,0.00170527]
[1641444794562,0.00119481,3445.3,3444.9,0.725719]
[1641444794963,1.27388701,3445.2,3444.9,0.725719]
[1641444795168,1.27388701,3445.2,3444.8,0.00170527]
[1641444795566,1.28711893,3444.4,3444.1,0.00568423]
[1641444795965,1.28711893,3444.4,3443.7,0.00795793]
[1641444796165,1.28711893,3444.4,3443.8,1.44005959]
[1641444796366,0.00119481,3445.3,3443.8,1.44005959]
[1641444796367,1.66819481,3445.3,3443.8,1.44005959]
[1641444796573,4.27360609,3445.2,3443.9,0.00682108]
[1641444796766,0.01207605,3444.9,3443.9,0.00682108]
[1641444796966,0.345,3444.8,3443.8,0.0073895]
[1641444797165,5.3635775,3444.8,3443.4,0.0096632]
[1641444797366,4.83758838,3444.8,3442.8,0.01307374]
[1641444797567,1.34474164,3443.8,3442.8,0.01307374]
[1641444798428,1.34474164,3443.8,3443.1,0.7260902]
[1641444798835,6.9212,3444.7,3443.2,0.01080004]
[1641444799340,6.9212,3444.7,3443.2,0.73683004]
[1641444799535,6.9212,3444.7,3443.4,0.7260251]
[1641444799733,1.41294078,3444.2,3443.4,2.13665981]
[1641444799934,1.41294078,3444.2,3443.5,0.00909477]
[1641444800238,6.9212,3444.7,3443.5,0.73511477]
[1641444800432,6.7141,3445.1,3443.5,0.73511477]
[1641444800634,7.4277,3445.2,3443.6,0.00852635]
[1641444801533,1.25992872,3444.5,3443.8,0.7259769]
[1641444801965,1.25992872,3444.5,3443.9,0.00682108]
[1641444802258,1.35554833,3444.6,3443.9,0.00682108]
[1641444802459,1.35554833,3444.6,3443.9,0.30682108]
[1641444802860,8.626,3445.2,3444.0,0.00625265]
[1641444803062,1.1880417,3445.1,3444.4,1.22135298]
[1641444803262,1.1880417,3445.1,3444.3,0.3]
[1641444803462,1.1880417,3445.1,3444.5,0.00341054]
[1641444803665,1.1880417,3445.1,3444.4,0.00397896]
[1641444803865,1.04477961,3444.4,3444.1,0.00568423]
[1641444804265,1.04477961,3444.4,3444.1,0.30568423]
[1641444804469,1.04477961,3444.4,3443.9,0.00682108]
[1641444804665,1.04477961,3444.4,3444.2,0.00511581]
[1641444804866,1.04477961,3444.4,3444.1,1.4517016]
[1641444805065,1.04477961,3444.4,3444.2,0.3]
[1641444805266,2.51323672,3444.4,3444.2,0.30511581]
[1641444805613,2.51323672,3444.4,3444.3,0.00454738]
[1641444805614,20.11323672,3444.4,3444.3,0.00454738]
[1641444806011,20.11323672,3444.4,3443.5,0.72605]
[1641444806212,20.11323672,3444.4,3443.6,0.00852635]
[1641444806415,1.42938988,3443.7,3443.6,0.00852635]
[1641444806812,17.6,3444.4,3443.6,0.00852635]
[1641444807211,17.6,3444.4,3443.3,0.01023162]
[1641444807411,1.04003388,3443.9,3443.3,0.01023162]
[1641444807813,17.6,3444.4,3443.5,0.7259694]
[1641444808013,0.00097771,3445.0,3443.5,0.7259694]
[1641444808212,0.00097771,3445.0,3443.6,0.00852635]
[1641444808615,0.00097771,3445.0,3443.5,1.2328]
[1641444808616,0.00097771,3445.0,3443.7,1.4518896]
[1641444808816,1.34580698,3444.2,3443.7,1.7518896]
[1641444809018,1.34580698,3444.2,3443.8,0.0073895]
[1641444810267,1.34580698,3444.2,3443.5,0.00909477]
[1641444810767,1.34580698,3444.2,3443.3,0.01023162]
[1641444811171,1.34580698,3444.2,3443.1,0.01136847]
[1641444811371,1.34580698,3444.2,3442.9,0.01250531]
[1641444811772,1.34580698,3444.2,3442.9,0.73865531]
[1641444811973,1.44109723,3443.5,3442.9,0.73865531]
[1641444812177,1.44109723,3443.5,3443.1,0.7261697]
[1641444812371,1.12576524,3443.9,3443.1,0.7261697]
[1641444812572,1.12576524,3443.9,3443.2,0.01080004]
[1641444812871,1.12576524,3443.9,3443.2,0.73691004]
[1641444813103,1.12576524,3443.9,3443.2,1.03691004]
[1641444813307,0.5,3444.9,3443.3,0.01023162]
[1641444813909,0.00097771,3445.0,3443.3,0.02239576]
[1641444814110,0.00097771,3445.0,3443.3,5.42511223]
[1641444814408,0.00097771,3445.0,3443.4,0.0096632]
[1641444814609,0.00097771,3445.0,3443.4,1.0096632]
[1641444814914,0.00097771,3445.0,3444.4,0.72582]
[1641444815109,0.00097771,3445.0,3444.4,1.02582]
[1641444815310,0.00097771,3445.0,3444.5,0.00341054]
[1641444815710,0.00097771,3445.0,3444.5,1.24283499]
[1641444815913,0.00097771,3445.0,3444.5,0.00341054]
[1641444816115,0.00097771,3445.0,3444.6,0.00284211]
[1641444816314,1.19079299,3444.7,3444.5,0.00341054]
[1641444817181,5.61366489,3444.6,3444.5,0.00341054]
[1641444817383,1.21366489,3444.6,3444.5,0.00341054]
[1641444817586,0.0218942,3444.6,3444.5,0.00341054]
[1641444817987,0.00097771,3445.0,3444.5,0.00341054]
[1641444818789,0.00097771,3445.0,3444.6,0.7257744]
[1641444818990,1.12724166,3445.0,3444.7,0.3]
[1641444819192,7.771e-05,3445.0,3444.7,0.30227369]
[1641444819392,0.00568424,3446.1,3444.7,0.30227369]
[1641444819393,0.00568424,3446.1,3445.2,2.17622]
[1641444819591,0.00568424,3446.1,3445.4,0.03214098]
[1641444819789,0.37226531,3446.2,3445.6,17.6]
[1641444819992,3.6789,3447.6,3446.2,0.72541]
[1641444819993,3.6359,3447.6,3446.2,0.72541]
[1641444820196,9.1312,3447.8,3446.2,0.72541]
[1641444820197,1.08738243,3446.3,3446.2,0.72541]
[1641444820390,1.08738243,3446.3,3446.2,1.02541]
[1641444820608,0.00454739,3446.8,3446.2,13.77541]
[1641444820808,0.00454739,3446.8,3446.0,1.45082]
[1641444821009,0.00397897,3446.7,3445.7,0.00170527]
[1641444821410,0.01284297,3447.1,3445.3,0.17669401]
[1641444821411,1.30954775,3446.0,3445.4,0.00341054]
[1641444823013,1.30954775,3446.0,3445.5,0.72561]
[1641444823414,1.30954775,3446.0,3445.6,0.00227369]
[1641444823614,1.30954775,3446.0,3445.6,0.30227369]
[1641444824016,1.30954775,3446.0,3445.7,0.00170527]
[1641444825069,1.30954775,3446.0,3445.8,0.7255]
[1641444825269,1.30954775,3446.0,3445.8,1.0255]
[1641444825473,1.30954775,3446.0,3445.7,0.00170527]
[1641444826871,2.58099019,3446.0,3445.7,0.00170527]
[1641444827471,1.30954775,3446.0,3445.7,0.00170527]
[1641444828509,2.6733609,3446.0,3445.7,0.00170527]
[1641444828914,2.6733609,3446.0,3445.6,0.00227369]
[1641444829311,2.6733609,3446.0,3445.4,0.00341054]
[1641444830113,2.6733609,3446.0,3445.4,0.30341054]
[1641444830313,2.6733609,3446.0,3445.4,0.00341054]
[1641444830511,2.6733609,3446.0,3445.5,0.00284211]
[1641444830718,2.6733609,3446.0,3445.4,0.00341054]
[1641444831411,2.6733609,3446.0,3445.1,0.00511581]
[1641444831612,1.24808623,3445.1,3444.7,1.83528651]
[1641444831860,2.15095157,3445.1,3444.8,0.00170527]
[1641444832260,3.7546,3445.8,3445.2,1.4513387]
[1641444832460,0.00454739,3445.9,3444.8,0.00170527]
[1641444832660,0.00341054,3445.7,3444.8,0.00170527]
[1641444832862,0.00397897,3445.8,3444.8,0.00170527]
[1641444833064,1.20999946,3445.4,3444.8,0.00170527]
[1641444833567,0.00113685,3445.3,3444.8,0.00170527]
[1641444833767,1.80073951,3445.2,3444.8,1.45307737]
[1641444834166,1.80073951,3445.2,3444.9,0.00113684]
[1641444836616,1.80073951,3445.2,3445.0,0.7256804]
[1641444836814,1.80073951,3445.2,3445.0,1.0256804]
[1641444837014,1.80073951,3445.2,3445.1,0.90004773]
[1641444837916,0.00113685,3445.3,3445.1,0.90004773]
[1641444838118,0.00113685,3445.3,3445.1,1.62571773]
[1641444839020,2.08162065,3445.3,3445.1,1.62571773]
[1641444839469,0.345,3447.8,3445.3,0.63210038]
[1641444839666,0.5,3447.3,3446.2,0.72538]
[1641444839865,0.345,3448.0,3446.4,0.60004773]
[1641444840264,0.01307374,3447.6,3446.4,0.60004773]
[1641444840464,1.39574711,3446.8,3446.4,0.60004773]
[1641444840869,0.00795793,3446.7,3446.4,0.60004773]
[1641444841267,0.00738951,3446.6,3446.4,0.60004773]
[1641444841666,12.05682108,3446.5,3446.4,0.60004773]
[1641444841867,14.27169972,3446.5,3446.4,0.60004773]
[1641444844819,14.27169972,3446.5,3445.0,3.6276505]
[1641444845020,14.86651457,3446.5,3445.0,0.7256729]
[1641444845217,1.16769688,3445.3,3445.0,2.63705167]
[1641444845418,1.16769688,3445.3,3445.1,0.00113684]
[1641444845819,1.16769688,3445.3,3445.0,0.00170527]
[1641444846866,1.16769688,3445.3,3444.7,0.00341054]
[1641444847160,1.16769688,3445.3,3444.8,0.7257657]
[1641444847364,1.16769688,3445.3,3444.8,1.0257657]
[1641444847561,1.16769688,3445.3,3444.9,0.00227369]
[1641444847966,1.90295691,3445.4,3444.9,0.00227369]
[1641444848967,1.00858435,3445.9,3445.0,0.7256766]
[1641444849167,1.00858435,3445.9,3445.2,0.72568]
[1641444849367,0.00284212,3445.8,3445.2,1.02568]
[1641444849767,0.00227369,3445.7,3445.2,1.02568]
[1641444849969,1.60512557,3445.5,3445.2,2.85478413]
[1641444850169,1.60512557,3445.5,3445.2,1.02568]
[1641444850913,1.60512557,3445.5,3445.2,0.72568]
[1641444851317,1.0070637,3445.3,3445.2,0.72568]
[1641444851917,1.0070637,3445.3,3445.1,0.00113685]
[1641444852419,1.0070637,3445.3,3444.4,0.00511581]
[1641444852420,1.6745637,3445.3,3444.4,0.00511581]
[1641444852617,2.3195637,3445.3,3444.4,0.00511581]
[1641444852816,0.72588,3444.3,3443.1,1.03110701]
[1641444853019,1.41164814,3444.2,3443.5,0.00511581]
[1641444853217,1.41164814,3444.2,3443.5,1.45721471]
[1641444853416,2.41164814,3444.2,3443.5,0.00511581]
[1641444853625,1.75484214,3444.1,3443.6,0.00454739]
[1641444853820,1.75484214,3444.1,3442.3,3.57928654]
[1641444853821,0.345,3444.0,3443.0,0.00795793]
[1641444854222,0.345,3444.0,3442.7,0.0096632]
[1641444854665,1.01240836,3442.2,3442.0,3.45108308]
[1641444854864,1.01240836,3442.2,3441.8,1.45268]
[1641444854865,0.345,3443.6,3441.8,1.45268]
[1641444855062,0.345,3443.6,3442.1,0.72974054]
[1641444855262,0.00454739,3443.5,3442.1,0.72974054]
[1641444855468,0.00454739,3443.5,3442.2,0.00284212]
[1641444855664,0.00397896,3443.4,3442.2,0.00284212]
[1641444855864,0.00397896,3443.4,3441.7,0.00568423]
[1641444856167,0.00341054,3443.3,3441.7,4.31134077]
[1641444856364,0.00341054,3443.3,3442.5,1.45226]
[1641444856564,0.00341054,3443.3,3442.6,1.4522]
[1641444856565,0.00284212,3443.2,3442.6,1.4522]
[1641444856963,0.00227369,3443.1,3442.6,1.4522]
[1641444857367,0.00170527,3443.0,3442.6,1.4522]
[1641444857665,3.9777,3443.8,3442.8,0.7261]
[1641444857865,1.89750529,3443.2,3442.8,1.4521948]
[1641444858116,3.00216495,3443.2,3442.7,0.00170527]
[1641444858513,1.52361567,3443.2,3442.6,0.00227369]
[1641444858719,1.52361567,3443.2,3442.7,0.7262115]
[1641444858920,0.42009286,3443.2,3442.8,0.7262]
[1641444859116,0.42009286,3443.2,3442.8,0.72733685]
[1641444859817,1.08161523,3443.5,3442.8,0.72733685]
[1641444860024,0.72588,3444.3,3442.8,0.72733685]
[1641444860025,0.72588,3444.3,3443.4,0.01287278]
[1641444860225,0.72588,3444.3,3443.7,2.17744]
[1641444860416,0.72588,3444.3,3444.2,17.56222876]
[1641444860620,3.9108,3445.5,3444.2,17.56222876]
[1641444860621,3.9108,3445.5,3444.3,11.9]
[1641444860817,6.17,3446.0,3444.3,11.9]
[1641444861016,6.17,3446.0,3444.3,12.2]
[1641444861017,1.72575863,3444.5,3444.3,12.2]
[1641444861221,1.36441304,3445.2,3444.3,12.92578]
[1641444861420,1.36441304,3445.2,3444.7,1.4515133]
[1641444861617,0.00795793,3445.1,3444.7,1.4515133]
[1641444862061,0.00738951,3445.0,3444.7,1.4515133]
[1641444862360,2.02711311,3444.9,3444.7,1.4515133]
[1641444862759,0.00625266,3444.8,3444.7,1.4515133]
[1641444864164,0.00625266,3444.8,3444.7,1.7515133]
[1641444866009,0.00712886,3444.8,3444.7,1.7515133]
[1641444866612,3.7936,3445.8,3444.8,0.03425115]
[1641444866815,3.7936,3445.8,3445.2,1.451156]
[1641444867016,0.00341054,3445.4,3445.2,2.476726]
[1641444867417,0.00284212,3445.3,3445.2,1.751156]
[1641444867616,0.00284212,3445.3,3445.2,18.51134832]
[1641444868118,0.00284212,3445.3,3445.2,2.46134832]
[1641444868922,0.00284212,3445.3,3445.2,13.91134832]
[1641444869566,0.00284212,3445.3,3445.1,1.45114]
[1641444869765,0.00284212,3445.3,3443.5,0.00113684]
[1641444869967,1.32878197,3444.7,3444.0,0.8640671]
[1641444870167,1.32878197,3444.7,3444.1,0.00397896]
[1641444870566,1.32878197,3444.7,3443.7,1.45184]
[1641444870567,0.0022737,3445.2,3444.0,1.95177972]
[1641444870969,0.00170527,3445.1,3444.1,0.72987896]
[1641444871369,0.00113685,3445.0,3444.2,0.00341054]
[1641444871573,2.00920066,3444.5,3444.2,0.00341054]
[1641444872370,2.00920066,3444.5,3443.7,2.90356]
[1641444872371,2.00920066,3444.5,3444.1,0.00397896]
[1641444872771,0.01252576,3444.7,3443.4,0.00795793]
[1641444872975,1.00113685,3445.0,3443.1,0.03854691]
[1641444872976,0.00113685,3445.0,3443.5,0.345]
[1641444873227,0.00113685,3445.0,3443.7,0.01285683]
[1641444873429,0.00113685,3445.0,3444.3,0.72578]
[1641444873826,1.94490394,3445.3,3444.6,0.7257674]
[1641444874228,1.94490394,3445.3,3444.7,0.00170527]
[1641444874830,1.11447206,3445.2,3444.7,0.00170527]
[1641444875032,1.11447206,3445.2,3444.4,0.00341054]
[1641444875236,2.45947206,3445.2,3444.3,0.00397896]
[1641444875431,2.45947206,3445.2,3443.8,0.00682108]
[1641444875432,1.17697567,3444.2,3443.8,0.00682108]
[1641444875836,1.17697567,3444.2,3443.4,0.00909478]
[1641444876042,1.90496322,3444.1,3443.4,0.00909478]
[1641444876238,2.02330605,3443.4,3443.2,0.01023162]
[1641444878282,0.345,3444.7,3443.2,0.01023162]
[1641444878780,3.9714,3445.0,3443.2,0.01023162]
[1641444879385,3.19090062,3444.6,3444.1,2.16291555]
[1641444879581,3.19090062,3444.6,3444.0,0.7259179]
[1641444879781,3.19090062,3444.6,3444.2,0.00454739]
[1641444879982,3.19090062,3444.6,3444.1,0.00511581]
[1641444880382,3.19090062,3444.6,3443.8,0.30682108]
[1641444880615,3.19090062,3444.6,3443.8,0.00682108]
[1641444880816,1.4193171,3444.0,3443.9,0.00625266]
[1641444881018,1.4193171,3444.0,3443.8,0.00682108]
[1641444881220,1.4193171,3444.0,3443.3,0.0096632]
[1641444881416,1.4193171,3444.0,3443.2,0.01023162]
[1641444882820,1.36349623,3443.4,3443.2,0.01023162]
[1641444883628,1.36349623,3443.4,3441.8,1.454]
[1641444883629,1.07709523,3441.7,3441.3,3.66247922]
[1641444883829,7.85399868,3443.0,3441.2,2.67635316]
[1641444884027,2.536,3443.0,3441.4,0.01023162]
[1641444884225,0.5,3442.9,3441.4,0.01023162]
[1641444884477,0.345,3442.8,3441.4,0.01023162]
[1641444884685,1.40364294,3442.7,3441.4,0.01023162]
[1641444884876,1.1612428,3441.3,3441.1,0.0119369]
[1641444885079,1.9675428,3441.3,3441.1,0.0119369]
[1641444885379,14.32036062,3441.2,3440.6,0.01477901]
[1641444885579,1.18630281,3440.7,3440.6,0.01477901]
[1641444885779,14.32036062,3441.2,3440.6,0.01477901]
[1641444885978,14.32036062,3441.2,3440.3,0.01648428]
[1641444886179,1.72036062,3441.2,3440.3,0.01648428]
[1641444886380,1.72036062,3441.2,3440.4,1.71344031]
[1641444886780,5.8255,3442.3,3441.1,3.01486412]
[1641444886781,0.345,3442.3,3441.1,3.01486412]
[1641444886981,3.8881,3442.8,3441.1,0.01214851]
[1641444886982,5.0444,3442.4,3441.1,0.01214851]
[1641444887184,4.7944,3442.4,3441.2,0.01136847]
[1641444888213,2.08317506,3441.7,3441.4,1.45284]
[1641444888617,2.08317506,3441.7,3441.5,0.3096632]
[1641444888917,3.1722729,3441.7,3441.6,0.00909478]
[1641444890016,3.1722729,3441.7,3441.5,0.0096632]
[1641444890420,17.5,3441.6,3441.0,1.4529327]
[1641444890621,17.5,3441.6,3439.8,0.75851126]
[1641444890622,17.5,3441.6,3439.9,2.03306935]
[1641444890820,17.5,3441.6,3441.1,0.0022737]
[1641444891125,17.5,3441.6,3439.9,2.03306935]
[1641444891126,17.462904,3441.2,3440.6,0.00511581]
[1641444891522,0.0120729,3442.0,3440.1,1.45337]
[1641444891719,1.2392,3442.3,3440.5,0.01212349]
[1641444891720,4.8775,3442.3,3440.5,0.01212349]
[1641444891966,4.8775,3442.3,3440.2,3.53677678]
[1641444891967,0.00227369,3441.9,3441.6,2.0053527]
[1641444892169,1.70338792,3442.1,3441.6,2.0053527]
[1641444892373,0.00170527,3441.8,3441.6,2.0053527]
[1641444892571,0.00284212,3442.0,3441.3,0.73890413]
[1641444892770,1.05605211,3441.5,3441.3,0.72649]
[1641444892970,0.345,3442.9,3441.3,0.72649]
[1641444892971,0.00227369,3441.9,3441.3,0.72649]
[1641444893171,0.345,3442.9,3441.3,0.72649]
[1641444893172,0.00284212,3442.0,3441.3,0.72649]
[1641444893371,0.00170527,3441.8,3441.3,0.72649]
[1641444893574,0.00227369,3441.9,3441.6,2.17688728]
[1641444893773,0.00113685,3441.7,3441.6,2.17688728]
[1641444893977,1.04084608,3441.8,3441.6,2.17688728]
[1641444894173,1.04084608,3441.8,3441.6,2.17802413]
[1641444894376,1.04084608,3441.8,3441.7,0.8718]
[1641444894574,1.00284212,3442.3,3441.7,0.8718]
[1641444894775,0.00284212,3442.3,3441.7,0.8718]
[1641444894978,1.0,3442.8,3441.7,0.8718]
[1641444894979,0.00227369,3442.2,3441.7,0.8718]
[1641444895274,0.00170527,3442.1,3441.7,0.8718]
[1641444895715,0.00113685,3442.0,3441.7,0.8718]
[1641444896118,1.17370555,3442.3,3441.8,0.8718]
[1641444896515,0.00227369,3442.2,3441.8,0.8718]
[1641444896921,0.00170527,3442.1,3441.8,0.8718]
[1641444897318,0.00113685,3442.0,3441.8,0.8718]
[1641444897719,0.00170527,3442.1,3441.8,0.8718]
[1641444898019,0.00113685,3442.0,3441.8,0.8718]
[1641444898421,0.00170527,3442.1,3441.8,0.8718]
[1641444898825,0.00113685,3442.0,3441.8,0.8718]
[1641444899224,0.00170527,3442.1,3441.8,0.8718]
[1641444899684,0.00113685,3442.0,3441.8,1.6909]
[1641444899884,2.98515645,3443.1,3442.0,0.90783956]
[1641444900084,0.00682108,3443.0,3442.6,0.8718]
[1641444900479,0.00511581,3442.9,3442.7,0.8718]
[1641444900679,0.00511581,3442.9,3442.8,2.63974422]
[1641444900878,2.98515645,3443.1,3442.8,2.63974422]
[1641444901079,18.67394736,3443.0,3442.9,0.8718]
[1641444901284,18.67394736,3443.0,3441.7,0.7263921]
[1641444901285,17.5,3442.9,3441.7,0.7263921]
[1641444901589,1.16770337,3442.3,3441.8,0.00113685]
[1641444902083,1.16770337,3442.3,3441.8,2.00650618]
[1641444902084,1.98873211,3442.2,3441.8,2.00650618]
[1641444902284,1.98873211,3442.2,3441.3,0.00397897]
[1641444902485,0.00113684,3442.2,3441.3,0.00397897]
[1641444902688,0.00113684,3442.2,3440.9,0.00625266]
[1641444902884,1.11038999,3441.6,3440.9,0.73280366]
[1641444903120,1.11038999,3441.6,3441.0,1.45294]
[1641444903317,0.30113684,3442.2,3441.0,0.00568424]
[1641444903517,0.30113684,3442.2,3440.9,0.726551]
[1641444903518,0.00113684,3442.2,3441.5,1.61698544]
[1641444903921,4.826383,3442.7,3441.6,0.0022737]
[1641444904323,0.0022737,3442.6,3441.6,0.00341054]
[1641444904723,1.04395313,3442.2,3441.6,0.00341054]
[1641444904922,0.00170527,3442.5,3442.1,2.21199042]
[1641444905122,0.00170527,3442.5,3441.6,0.00341054]
[1641444905326,0.00113685,3442.4,3441.6,0.00341054]
[1641444905522,0.00113685,3442.4,3441.3,0.00511581]
[1641444905723,7.7375,3443.7,3441.5,0.03815854]
[1641444905724,0.00284212,3442.7,3441.5,0.03815854]
[1641444906023,0.00454739,3443.0,3442.0,2.1785379]
[1641444906223,0.00454739,3443.0,3442.9,2.21850129]
[1641444906422,0.00397897,3442.9,3442.1,0.3]